Cogmind - Beta 15 @@@ ROGUE MODE // 2025.05.23 @ 11:36:23 Player: Nebulae Result: Destroyed by G-47 Trooper with Particle Gun Performance ------------- Evolutions (3) 1500 Regions Visited (7) 1400 Robots Destroyed (53) 265 Value Destroyed (1485) 1485 Prototype IDs (3) 60 Alien Tech Used (0) 0 Bonus (33) 33 TOTAL SCORE: 4743 Bonus ------- Follower Combat Kills 33 Cogmind --------- Core Integrity 0/700 Matter 295/300 Energy 91/100 System Corruption 0% Temperature Cool (9) Movement Core (200) Ox3 Location -7/Lower Caves Parts ------- > --- POWER (2) -------- (None) > --- PROPULSION (4) --- (None) > --- UTILITY (4) ------ Medium Storage Unit Improved Terrain Scan Processor > --- WEAPON (3) ------- Makeshift Spear > --- INVENTORY (10) --- Improved VTOL Module Improved VTOL Module Improved VTOL Module Compact Battery (200) Weight Redist. System Transmission Jammer Peak State ------------ > --- POWER ------------ Improved Ion Engine Light Deuterium Engine > --- PROPULSION ------- Improved Titanium Leg Improved Titanium Leg Improved Titanium Leg Improved VTOL Module > --- UTILITY ---------- Medium Storage Unit Improved Terrain Scanner Improved Terrain Scan Processor Targeting Computer > --- WEAPON ----------- Advanced Beam Rifle Advanced Beam Rifle Enhanced Autogun > --- INVENTORY -------- Light Deuterium Engine Improved VTOL Module Improved VTOL Module Weight Redist. System Weight Redist. System Transmission Jammer Advanced Beam Rifle Minigun Makeshift Spear [Rating: 44] Favorites ----------- Power Light Deuterium Engine Engine Light Deuterium Engine Propulsion Improved Titanium Leg Treads Armored Treads Leg Improved Titanium Leg Flight Unit Improved VTOL Module Utility Targeting Computer Device Improved Terrain Scanner Storage Medium Storage Unit Processor Targeting Computer Protection Power Shielding Weapon Enhanced Autogun Energy Gun Advanced Beam Rifle Energy Cannon Heavy Ion Cannon Ballistic Gun Enhanced Autogun Launcher Grenade Launcher Slashing Weapon Mining Claw Piercing Weapon Makeshift Spear Build | -11 -10 -10 -9 -9 -8 -7 -7 ------- Run | Yrd Mat Min Mat Min Mat Fac Low Slots Evolved 6 | . . . 2 . 2 2 . Power 1 | . . . . . 1 . . Propulsion 2 | . . . 1 . . 1 . Utility 2 | . . . 1 . . 1 . Weapon 1 | . . . . . 1 . . Parts Attached 55 | 6 4 9 3 3 23 4 3 Power 10 | 1 1 1 . . 6 . 1 Engine 10 | 1 1 1 . . 6 . 1 Core . | . . . . . . . . Reactor . | . . . . . . . . Propulsion 16 | 2 . 2 2 1 8 . 1 Treads 2 | . . . . 1 . . 1 Leg 11 | 2 . 2 2 . 5 . . Wheel . | . . . . . . . . Hover . | . . . . . . . . Flight 3 | . . . . . 3 . . Utility 11 | 1 1 3 1 . 2 3 . Device 4 | 1 . 1 . . 1 1 . Storage 1 | . . . . . 1 . . Processor 4 | . . 1 1 . . 2 . Hackware . | . . . . . . . . Protection 2 | . 1 1 . . . . . Artifact . | . . . . . . . . Weapon 18 | 2 2 3 . 2 7 1 1 Energy Gun 9 | 1 1 2 . 1 3 . 1 Energy Cannon 2 | . . . . . 1 1 . Ballistic Gun 4 | 1 1 . . . 2 . . Ballistic Cannon . | . . . . . . . . Launcher 1 | . . . . 1 . . . Special Weapon . | . . . . . . . . Impact Weapon . | . . . . . . . . Slashing Weapon 1 | . . 1 . . . . . Piercing Weapon 1 | . . . . . 1 . . Special Melee Weapon . | . . . . . . . . Unidentified Prototypes 3 | . . . . . 3 . . Parts Lost 19 | . . 4 . . . . 15 Power 4 | . . 1 . . . . 3 Propulsion 6 | . . 2 . . . . 4 Utility 3 | . . 1 . . . . 2 Weapon 6 | . . . . . . . 6 Highest Loss Streak 14 | . . 3 . . . . 14 To Critical Strikes . | . . . . . . . . Average Backups 6 | 3 4 4 4 4 7 9 9 Power 1 | . 1 1 . 1 2 1 . Propulsion 1 | 1 1 . . 1 1 2 2 Utility 1 | . . . . . . 3 2 Weapon 2 | . 1 2 2 2 3 3 3 Tool/Special . | . . . . . . . . Unused Backups 19 | 1 2 2 3 1 6 1 3 Power 3 | . 1 . 1 . 1 . . Propulsion 6 | 1 1 1 2 . 1 . . Utility 5 | . . . . . 1 1 3 Weapon 5 | . . 1 . 1 3 . . Tool/Special . | . . . . . . . . Average Slot Usage (%) 96 | . 95 95 92 100 99 92 97 Engine 14 | . 14 13 11 11 17 15 14 Treads 2 | . . . . 3 1 . 5 Leg 24 | . 28 25 26 29 25 23 22 Device 6 | . 14 8 . . 5 7 6 Storage 3 | . . . . . 6 7 7 Processor 12 | . . 4 22 22 11 12 14 Protection 5 | . 10 14 11 11 3 . . Energy Gun 13 | . 14 23 22 11 10 14 6 Energy Cannon 2 | . . . . . . . 6 Ballistic Gun 6 | . 14 2 . . 14 7 6 Peak Build Rating 44 | 6 7 12 13 15 36 44 44 Average Rating 24 | 4 6 8 12 14 30 40 42 On Entrance 16 | . 6 7 11 13 15 36 44 Naked Turns . | . . . . . . . . Heaviest Build 36 | 7 11 16 14 16 35 36 36 Greatest Support 66 | 20 20 20 30 30 66 66 60 Greatest Overweight (x) 3 | . . 3 . . 2 . . Average Overweight (x) . | . . . . . . . . Largest Inventory Capacity 10 | 5 5 5 5 5 10 10 10 Average Capacity 7 | 5 5 5 5 5 8 10 10 Most Carried 10 | 5 5 5 5 5 10 10 10 Average Carried 6 | 3 4 4 4 4 7 9 9 Final Capacity 10 | 5 5 5 5 5 10 10 10 Final Carried 10 | 5 5 4 5 5 10 10 6 Class Distribution -------------------- 31% | Skirmisher 30% | Mutant 16% | Gunner 16% | Scavenger-Mutant 5% | Scavenger-Gunner Dominant Class ---------------- Mutant | -10/Materials Mutant | -10/Mines Mutant | -9/Materials Scavenger-Mutant | -9/Mines Gunner | -8/Materials Skirmisher | -7/Factory Skirmisher | -7/Lower Caves Resources | -11 -10 -10 -9 -9 -8 -7 -7 ----------- Run | Yrd Mat Min Mat Min Mat Fac Low Matter Collected 1426 | 271 77 191 30 100 532 . 225 Remotely . | . . . . . . . . Salvage Created 1909 | 85 210 139 181 22 806 . 466 Parts 123 | 7 15 9 13 4 56 . 19 Haulers Intercepted 3 | . 1 . . . 2 . . Recyclers Shooed 4 | . . 2 1 . 1 . . Parts Field Recycled . | . . . . . . . . Retrieved Matter . | . . . . . . . . Parts Self-Destructed 28 | . . . . . . . 28 Prevented . | . . . . . . . . Kills | -11 -10 -10 -9 -9 -8 -7 -7 ------- Run | Yrd Mat Min Mat Min Mat Fac Low Combat Hostiles Destroyed 43 | 1 4 3 5 6 12 . 12 Guns 31 | 1 4 3 5 1 12 . 5 Cannons 7 | . . . . . . . 7 AOE 5 | . . . . 5 . . . Classes Destroyed 12 | 3 1 1 2 2 3 . . Worker 1 | 1 . . . . . . . Builder 1 | . . . . . 1 . . Tunneler 1 | 1 . . . . . . . Hauler 3 | . 1 . . . 2 . . Recycler 2 | . . . . . 2 . . Operator 2 | . . . 1 . 1 . . Watcher 1 | . . . . . 1 . . Swarmer 16 | . . . 2 3 4 . 7 Grunt 18 | 1 4 2 3 . 3 . 5 Sentry 6 | . . 1 . . 5 . . Demolisher 2 | . . . . 2 . . . Assembled 1 | . . . . 1 . . . Best Kill Streak 8 | 1 3 1 3 3 8 . 4 Combat Bots Only 7 | 1 2 1 3 3 7 . 4 Max Kills in Single Turn 3 | 1 2 1 2 3 2 . 1 Gunslinging 1 | . . . 1 . . . . Exploded 3 | . . . . 3 . . . Melee . | . . . . . . . . Uniques/NPCs Destroyed . | . . . . . . . . Combat | -11 -10 -10 -9 -9 -8 -7 -7 -------- Run | Yrd Mat Min Mat Min Mat Fac Low Hostile Shots Fired 378 | 5 14 43 30 11 68 . 207 Missed 91 | 1 1 11 10 3 15 . 50 Hits 287 | 4 13 32 20 8 53 . 157 Projectile 287 | 4 13 32 20 8 53 . 157 AOE 4 | . . . . 4 . . . Critical Strikes 6 | . . 2 . . 2 . 2 Damage Taken 3994 | 45 144 408 214 185 687 16 2295 Core 1003 | . 12 99 43 44 96 . 709 Absorbed by Shields . | . . . . . . . . Redirected to Shielding 28 | . . 6 9 5 8 . . Core Remaining (%) 78 | 100 . 55 . 78 82 . . Volleys Fired 151 | 14 13 29 14 10 47 . 24 Largest 3 | 2 2 2 2 2 3 . 3 Hottest 151 | 60 60 105 80 95 130 . 151 Shots Fired 298 | 28 26 34 28 18 106 . 58 Gun 262 | 28 26 34 28 10 100 . 36 Cannon 27 | . . . . . 5 . 22 Launcher 9 | . . . . 8 1 . . Special . | . . . . . . . . Kinetic 152 | 14 13 27 . . 78 . 20 Thermal 94 | 14 13 2 . 9 18 . 38 Explosive 9 | . . . . 8 1 . . Electromagnetic 43 | . . 5 28 1 9 . . Robot Hit Streak 14 | 4 7 14 6 6 8 . 12 Robot Miss Streak 3 | 2 2 3 2 2 3 . 3 Penetration Max . | . . . . . . . . Secondary Targets 3 | . . . 2 . . . 1 Max Gunslinging Chain 1 | . . . 1 . . . 1 Shots Hit Robots 187 | 17 17 28 18 12 60 . 35 Core Hits 89 | 4 10 9 7 11 28 . 20 Critical Kills 1 | . . . . . . . 1 Critical Parts Destroyed . | . . . . . . . . Critical Strikes 5 | . . . . 1 2 . 2 Burn 4 | . . . . 1 2 . 1 Destroy 1 | . . . . . . . 1 Melee Attacks 2 | . . . . . . . 2 Impact . | . . . . . . . . Slashing . | . . . . . . . . Piercing 2 | . . . . . . . 2 Sneak Attacks . | . . . . . . . . Combat Hostiles . | . . . . . . . . Follow-up Attacks . | . . . . . . . . Damage Inflicted 3367 | 212 220 340 297 337 1130 . 831 Guns 2544 | 212 214 340 261 91 1051 . 375 Cannons 535 | . . . . . 79 . 456 Explosions 282 | . . . 36 246 . . . Melee . | . . . . . . . . Ramming 6 | . 6 . . . . . . Kinetic 1512 | 110 117 267 . . 863 . 155 Thermal 1197 | 102 97 27 36 91 168 . 676 Explosive 246 | . . . . 246 . . . Electromagnetic 406 | . . 46 261 . 99 . . Impact . | . . . . . . . . Slashing . | . . . . . . . . Piercing . | . . . . . . . . Highest Corruption . | . . . . . . . . Average Corruption . | . . . . . . . . Corruption Purged . | . . . . . . . . Corruption Blocked . | . . . . . . . . Overload Shots . | . . . . . . . . Overflow Damage 20 | . . . . . 17 . 3 Projectiles 20 | . . . . . 17 . 3 Explosions . | . . . . . . . . Melee . | . . . . . . . . Knockbacks . | . . . . . . . . Impact . | . . . . . . . . Kinetic . | . . . . . . . . Secondary . | . . . . . . . . Self-Inflicted Damage 52 | . . . 24 2 26 . . Shots 3 | . . . 1 1 1 . . Rammed . | . . . . . . . . Targets Rammed 1 | . 1 . . . . . . Kicked 1 | . 1 . . . . . . Crushed . | . . . . . . . . Highest Temperature 503 | 24 54 66 123 194 356 . 503 Average Temperature 123 | 17 24 28 37 77 132 . 205 Received Heat Transfer 1107 | 24 78 261 48 . 234 . 462 Effects 9 | . . . . . 4 . 5 Shutdowns 2 | . . . . . . . 2 Energy Bleed 2 | . . . . . 1 . 1 Interference 3 | . . . . . 3 . . Damage (minor) 1 | . . . . . . . 1 Damage (core) 1 | . . . . . . . 1 Siege Activations . | . . . . . . . . Martial Activations . | . . . . . . . . Shielding Activations . | . . . . . . . . Robots Disrupted . | . . . . . . . . Combat Hostiles . | . . . . . . . . Robots Corrupted . | . . . . . . . . Combat Hostiles . | . . . . . . . . Parts Fried 1 | . . . 1 . . . . Impact Corruptions . | . . . . . . . . Robots Melted . | . . . . . . . . Combat Hostiles . | . . . . . . . . Parts Melted 1 | . . . . . . . 1 Heat Transferred 2498 | 225 225 74 50 296 518 . 1110 Parts Sabotaged . | . . . . . . . . Parts Stolen . | . . . . . . . . Parts Stripped . | . . . . . . . . Power Chain Reactions 1 | . . . 1 . . . . Alert | -11 -10 -10 -9 -9 -8 -7 -7 ------- Run | Yrd Mat Min Mat Min Mat Fac Low Maximum Alert Level . | . . . . . . . . Low Security (%) 100 | 100 100 100 100 100 100 100 . Level 1 . | . . . . . . . . Level 2 . | . . . . . . . . Level 3 . | . . . . . . . . Level 4 . | . . . . . . . . Level 5 . | . . . . . . . . High Security . | . . . . . . . . Max Security . | . . . . . . . . Peak Influence 187 | 20 47 30 70 128 187 53 . Initial 53 | . . 7 . 23 22 53 . Average 38 | 3 20 3 18 94 83 12 . Influence Increases 1317 | 30 117 91 145 145 364 . 425 Destroy 0b10 Robot/C 860 | 20 80 80 100 100 240 . 240 Destroy 0b10 Robot/NC 55 | 10 5 . 5 . 35 . . Destroy Leader 158 | . 22 10 10 20 76 . 20 Allied During Kill 1 | . . 1 . . . . . Successful Hack 13 | . 10 . . . 3 . . Disable Machine 15 | . . . . 15 . . . Destroy Structure 20 | . . . . 10 10 . . Lose Combat Pursuer 195 | . . . 30 . . . 165 Influence Decreases 1285 | 30 97 111 85 147 305 117 393 Entered New Map 150 | . . 13 . 37 36 64 . Time Decay 945 | 30 97 58 85 110 269 53 243 Lost Part 170 | . . 20 . . . . 150 Lost Ally 20 | . . 20 . . . . . Squads Dispatched 4 | . 2 . 1 . 1 . . Investigation 1 | . . . 1 . . . . Extermination . | . . . . . . . . Reinforcement 3 | . 2 . . . 1 . . Assault . | . . . . . . . . Garrison . | . . . . . . . . Intercept . | . . . . . . . . Searches Triggered . | . . . . . . . . Construction Impeded . | . . . . . . . . Haulers Reinforced . | . . . . . . . . Active Scanning Responses . | . . . . . . . . Cargo Convoy Interrupts . | . . . . . . . . Stealth | -11 -10 -10 -9 -9 -8 -7 -7 --------- Run | Yrd Mat Min Mat Min Mat Fac Low Distress Signals 2 | . 1 . . . 1 . . Communications Jammed . | . . . . . . . . Distress Signals . | . . . . . . . . Times Spotted 75 | 1 6 4 11 8 21 . 24 Peak Tracking Total 13 | 1 2 2 7 4 7 . 13 Tactical Retreats 6 | . . . 1 . . . 5 Traps | -11 -10 -10 -9 -9 -8 -7 -7 ------- Run | Yrd Mat Min Mat Min Mat Fac Low Traps Triggered 1 | . . . . . . 1 . Indirectly . | . . . . . . . . Trap Hack Attempts . | . . . . . . . . Triggered . | . . . . . . . . Disarmed . | . . . . . . . . Reprogrammed . | . . . . . . . . Reused . | . . . . . . . . Traps Extracted . | . . . . . . . . Installed . | . . . . . . . . Triggered . | . . . . . . . . Machines | -11 -10 -10 -9 -9 -8 -7 -7 ---------- Run | Yrd Mat Min Mat Min Mat Fac Low Machines Disabled 1 | . . . . 1 . . . Max in Single Turn 1 | . . . . 1 . . . Machines Repaired . | . . . . . . . . Machines Dismantled . | . . . . . . . . Machines Sabotaged . | . . . . . . . . Overloaded Fab Kills . | . . . . . . . . Hacking | -11 -10 -10 -9 -9 -8 -7 -7 --------- Run | Yrd Mat Min Mat Min Mat Fac Low Machines Accessed 5 | . 1 . 3 . 1 . . Terminals 5 | . 1 . 3 . 1 . . Fabricators . | . . . . . . . . Repair Stations . | . . . . . . . . Recycling Units . | . . . . . . . . Scanalyzers . | . . . . . . . . Garrison Access . | . . . . . . . . Total Hacks 18 | . 6 . 6 . 6 . . Successful 9 | . 3 . 3 . 3 . . Failed 9 | . 3 . 3 . 3 . . Catastrophic 1 | . . . 1 . . . . Database Lockouts . | . . . . . . . . Manual . | . . . . . . . . Terminals 18 | . 6 . 6 . 6 . . Fabricators . | . . . . . . . . Repair Stations . | . . . . . . . . Recycling Units . | . . . . . . . . Scanalyzers . | . . . . . . . . Garrison Access . | . . . . . . . . Terminal Hacks 9 | . 3 . 3 . 3 . . Record 4 | . . . 1 . 3 . . Alert Level 2 | . 1 . 1 . . . . Reinforcement Status 1 | . 1 . . . . . . Zone Layout 2 | . 1 . 1 . . . . Fabricator Hacks . | . . . . . . . . Repair Station Hacks . | . . . . . . . . Recycling Unit Hacks . | . . . . . . . . Scanalyzer . | . . . . . . . . Garrison Access Hacks . | . . . . . . . . Unauthorized Hacks . | . . . . . . . . Terminals . | . . . . . . . . Fabricators . | . . . . . . . . Repair Stations . | . . . . . . . . Recycling Units . | . . . . . . . . Scanalyzers . | . . . . . . . . Garrison Access . | . . . . . . . . Data Cores Recovered 1 | . . . 1 . . . . Used 1 | . . . 1 . . . . Hacking Detections 5 | . 1 . 3 . 1 . . Full Trace Events 1 | . . . 1 . . . . Feedback Events . | . . . . . . . . Feedback Blocked . | . . . . . . . . Robot Schematics Acquired . | . . . . . . . . Robots Built . | . . . . . . . . Authchips . | . . . . . . . . Time . | . . . . . . . . Total Robot Build Rating . | . . . . . . . . Part Schematics Acquired . | . . . . . . . . Parts Built . | . . . . . . . . Authchips . | . . . . . . . . Time . | . . . . . . . . Total Part Build Rating . | . . . . . . . . Parts Repaired . | . . . . . . . . Time . | . . . . . . . . Parts Recycled . | . . . . . . . . Recycled Matter . | . . . . . . . . Retrieved Matter . | . . . . . . . . Retrieved Components . | . . . . . . . . Parts Scanalyzed . | . . . . . . . . Part Schematics Acquired . | . . . . . . . . Parts Damaged . | . . . . . . . . Bothacking | -11 -10 -10 -9 -9 -8 -7 -7 ------------ Run | Yrd Mat Min Mat Min Mat Fac Low Used RIF Installer . | . . . . . . . . Robots Hacked . | . . . . . . . . Non-combat . | . . . . . . . . Combat . | . . . . . . . . Robot Hacks Applied . | . . . . . . . . Relay Couplers Released . | . . . . . . . . Fabnet Peak Effective % . | . . . . . . . . Robots Rewired . | . . . . . . . . Allies Hacked . | . . . . . . . . Hacks Repelled . | . . . . . . . . Allies | -11 -10 -10 -9 -9 -8 -7 -7 -------- Run | Yrd Mat Min Mat Min Mat Fac Low Total Allies 1 | . . 1 . . . . . Largest Group 1 | . . 1 . . . . . Highest-Rated Group 31 | . . 31 . . . . . Highest-Rated Ally 31 | . . 31 . . . . . Total Orders . | . . . . . . . . Ally Attacks 3 | . . 3 . . . . . Total Damage 41 | . . 41 . . . . . Kills 1 | . . 1 . . . . . Allies Corrupted . | . . . . . . . . Allies Melted . | . . . . . . . . Intel | -11 -10 -10 -9 -9 -8 -7 -7 ------- Run | Yrd Mat Min Mat Min Mat Fac Low Active Infowar (turns) 1315 | 38 241 43 . . . 159 834 Terrain 993 | . . . . . . 159 834 Seismic 322 | 38 241 43 . . . . . Robot Analysis Total . | . . . . . . . . Derelict Logs Recovered 3 | . . 2 . 1 . . . Drone Launches . | . . . . . . . . Drone Recoveries . | . . . . . . . . Exploration | -11 -10 -10 -9 -9 -8 -7 -7 ------------- Run | Yrd Mat Min Mat Min Mat Fac Low Turns Passed 3183 | 174 241 459 340 233 630 258 848 Spaces Moved 1964 | 108 155 299 162 159 315 188 578 Core 22 | 21 . 1 . . . . . Treads 1 | . . . . 1 . . . Legs 1937 | 87 155 298 162 158 311 188 578 Wheels . | . . . . . . . . Hover . | . . . . . . . . Flight 4 | . . . . . 4 . . Fastest Speed 50 | 50 120 120 120 120 99 130 130 Average Speed 125 | 106 120 120 120 120 133 130 130 Slowest Speed 200 | 120 120 200 120 160 195 130 130 Overloaded Moves . | . . . . . . . . Propulsion Burnouts . | . . . . . . . . Robots Hopped . | . . . . . . . . Potential Cave-ins . | . . . . . . . . Cave-ins Triggered . | . . . . . . . . Exploration Rate (%) 30 | 7 21 53 15 41 31 5 74 Regions Visited 7 Branch Regions 3 Pre-discovered Areas . | . . . . . . . . Known Exits Taken 1 | . . . . 1 . . . Unknown Exits Taken 6 | 1 1 1 1 . 1 1 . Scrap Searched 2 | . . . . 2 . . . Spaces Dug . | . . . . . . . . Terrain Destroyed 46 | . . . . 39 7 . . Melee . | . . . . . . . . Projectile . | . . . . . . . . AOE 46 | . . . . 39 7 . . Terrain Rammed . | . . . . . . . . Walls Destroyed . | . . . . . . . . Machines Disabled . | . . . . . . . . Actions | -11 -10 -10 -9 -9 -8 -7 -7 --------- Run | Yrd Mat Min Mat Min Mat Fac Low Total 2441 | 139 186 364 281 184 456 201 630 Wait 141 | . 3 11 92 7 11 . 17 Move 1957 | 107 154 298 161 158 314 187 578 Hop . | . . . . . . . . Pick Up 73 | 11 6 9 7 3 29 6 2 Fast Attach 5 | 1 . 1 . . 3 . . Attach 25 | 5 3 4 3 1 2 2 5 Detach 1 | . . . . . 1 . . Swap 37 | . 1 5 . 2 25 3 1 Drop 48 | 1 5 7 4 3 24 3 1 Fire 151 | 14 13 29 14 10 47 . 24 Melee 2 | . . . . . . . 2 Ram . | . . . . . . . . Kick 1 | . 1 . . . . . . Crush . | . . . . . . . . Escape Stasis . | . . . . . . . . Rewire . | . . . . . . . . Trap . | . . . . . . . . Miscellaneous . | . . . . . . . . Route ------- -11/Scrapyard -10/Materials -10/Mines (discovered 2 exits: *Mat x2) -9/Materials (discovered 2 exits: Mat / [*Min]) -9/Mines -8/Materials -7/Factory -7/Lower Caves History --------- Turn | Location | Event 2 | -11/Scrapyard | Met Revision 17 96 | -11/Scrapyard | Discovered new exit (range 8) 175 | -11/Scrapyard | Entered Materials 246 | -10/Materials | Discovered new exit (range 7) 310 | -10/Materials | Build established: Mutant 416 | -10/Materials | Entered Mines 437 | -10/Mines | Met a Derelict bent on vengeance 496 | -10/Mines | Lost 3 parts (2n1u) 543 | -10/Mines | Learned 2 Materials zone layouts 565 | -10/Mines | Discovered new exit (range 11) 574 | -10/Mines | Received a Mining Laser from a helpful Derelict 838 | -10/Mines | Discovered new exit (range 2) 851 | -10/Mines | Learned Materials security intel 875 | -10/Mines | Entered Materials 875 | -9/Materials | Evolved 2 slots: Propulsion x1, Utility x1 876 | -9/Materials | Identified exit to Materials 1194 | -9/Materials | Discovered new exit (range 7) 1215 | -9/Materials | Entered Mines 1216 | -9/Mines | Assembled infested the area 1376 | -9/Mines | Build established: Scavenger-Mutant 1376 | -9/Mines | A weapon hastily lodged in a ceiling crevice suddenly fell to the ground 1394 | -9/Mines | Learned Materials emergency access door positions 1404 | -9/Mines | Discovered exit to Materials (range 5) 1448 | -9/Mines | Entered Materials 1448 | -8/Materials | Evolved 2 slots: Power x1, Weapon x1 1842 | -8/Materials | Destroyed 7 combat bots 2056 | -8/Materials | Discovered new exit (range 8) 2078 | -8/Materials | Entered Factory 2078 | -7/Factory | Evolved 2 slots: Propulsion x1, Utility x1 2316 | -7/Factory | Discovered new exit (range 8) 2336 | -7/Factory | Entered Lower Caves 2339 | -7/Lower Caves | Encountered a Warlord checkpoint 2470 | -7/Lower Caves | Build established: Skirmisher 2906 | -7/Lower Caves | Spotted B-75 Beast 3136 | -7/Lower Caves | Attracted the attention of an 0b10 base 3163 | -7/Lower Caves | Core integrity fell below 50% 3179 | -7/Lower Caves | Core integrity fell below 20% 3184 | -7/Lower Caves | Destroyed by G-47 Trooper with Particle Gun Last Messages --------------- Adv. Beam Rifle destroyed. Lgt. Nuclear Core fries itself beyond repair. Hvy. Ion Cannon destroyed. Targeting Computer destroyed. Autogun fries itself beyond repair. Lgt. Deuterium Engine destroyed. Imp. Titanium Leg destroyed. Lgt. Nuclear Core fries itself beyond repair. VTOL Module melted. S-27 Virus destroyed. Critical hit (Burn: +37). S-27 Virus destroyed. Switching to secondary target: G-47 Trooper. Imp. Terrain Scanner destroyed. Adv. Beam Rifle destroyed. Critical hit (Burn: +37). VTOL Module fries itself beyond repair. Adv. Beam Rifle destroyed. Lgt. Nuclear Core fries itself beyond repair. Autogun fries itself beyond repair. Map ----- +----------------------------------------------------+ | | | | | | | | | | | | | | | | | ?????????????????????????????????????????????????? | | ?????????????????????????????????????????????????? | | ??????????????????????#????#?##??????????????????? | | ???????????????????#????##??###??#???????????????? | | ?????????????????##????###?##??#?#???????????????? | | ???????????????###?#???#?#?#?#???#???#???????????? | | ???????????????##???###???????#???#??????????????? | | ??????????????##???#?##??#???#?##?#??#??#????????? | | ????????????#??##??????##?#??##??#?#??#??????????? | | ??????????????##??#??##??##??????#????#???#??????? | | ?????????????#??##???##??#?#??#???#??#???????????? | | ????????????#????#???##?##?#?????####??????#?????? | | ??????????#?##???#??#???#??#????####?###?#???????? | | ???????????#?????###????#?#?#?##?#?##?#??#???????? | | ??????????###???????######??###???##?#?#?????????? | | ??????????#############gg######### #?#?#?##?????? | | ???????????# ss% #? #?###???????? | | ?????????### g@ g #?? #?????#?????? | | ????????#?#? ?########++###### #???###??????????? | | ?????????###???? ? # # ?# # ######???????? | | ??????????#???? ?? # # "# # #### ????? | | ???????????# ?#? ???# $#? ?# #? ### ??? | | ??????????#???## ## # ?# # ?????? | | ???????????? # # ??# # ????????? | | ????????????? + # ??# # #?? ?#?????? | | ??????????????+ # # #?? ??#???#?? | | ????????????? # " " ??+ ##??????????? | | ??????????????? """"" ? + ###??#??? | | ???????????? ??? ?? # #??#?# ? | | ??????????#?? ? ? ?# ###?????? | | ????????? ?# ???"" ??# ########??? | | ??????????#? ? ?" "?# ##### ####? | | ?????????????????? """"""# ##???# ## ? | | ???????????# ######++######## ###### # ? | | ????????#??# # #? ?# | | ???????????# ## ?## | | ???????????########### ### #? ?##### | | ???????#??????#????## ######## #????##?# | | ?????????# ## ####?#?# #???? ? | | ??????????# ###?### ####??#??# | | ???????????# ## ###??# ####????## | | ???????? #?## ##### #######? | +----------------------------------------------------+ Best States ------------- Heat Dissipation 35 Energy Generation 27 Energy Capacity 315 Matter Stores 300 Matter Capacity 300 Sight Range 16 Terrain Scan Range 16 Terrain Scan Density 110 Additional Mass Support 6 Power Shielding 33 Utility Shielding 33 Evasion (%) 55 Targeting Accuracy 10 Target Analysis 5 Recoil Reduction 1 Item Schematics ----------------- None Robot Schematics ------------------ None Fabricated ------------ Nothing Repaired ---------- Nothing Alien Tech Used ----------------- None Achievements -------------- Dynamic Key I Survived The Infestation Omniscient Cartographer One Hack Too Far Challenges ------------ None Game ------ Seed BehemothAlphaDerivative Manual? 0 Play Time 01:16:35 Cumulative 4.8 hours Start 2025.05.23 @ 10:14:07 End 2025.05.23 @ 11:36:23 Sessions 1 Manual Loads 0 Difficulty Rogue Special Mode None Game No. 3 Rogue 3 Adventurer 0 Explorer 0 Win Type - Total 0 Types 0/0/0/0/0/0/0/0/0/0 Lore% 3 Gallery% 6 Achievement% 9 Wizard Run 0 Options --------- Layout 1 ASCII 0 Keyboard 0 Movement Arrows Keybinds 0 Fullscreen 1 Font 24/Smallcaps Map View 50x35 Zoom Use 0% Tactical HUD 0 Map Filters NONE Filters NONE Steam X RUN: 190e1887-280a-4d71-8baa-2b8a4d45e431